Cogmind - Beta 9.3 *** ADVENTURER MODE // 2019.12.28 @ 21:26:51 Player: Tengoo Result: Self-destructed Performance ------------- Evolutions (1) 500 Regions Visited (3) 600 Robots Destroyed (39) 195 Value Destroyed (834) 834 Prototype IDs (6) 120 Alien Tech Used (0) 0 Bonus (0) 0 TOTAL SCORE: 2249 Bonus ------- None Cogmind --------- Core Integrity 331/400 Matter 255/300 Energy 250/250 System Corruption 0% Temperature Cool (0) Movement Walking (120) Location -9/Materials Parts ------- > --- POWER (1) -------- Ion Engine > --- PROPULSION (3) --- Aluminum Leg Aluminum Leg Aluminum Leg > --- UTILITY (3) ------ Small Storage Unit Improved Sensor Array > --- WEAPON (2) ------- (None) > --- INVENTORY (6) ---- Aluminum Leg Medium Matter Pod (34) Small Laser Datajack Datajack Mining Laser Peak State ------------ > --- POWER ------------ Ion Engine > --- PROPULSION ------- Aluminum Leg Aluminum Leg Aluminum Leg > --- UTILITY ---------- Small Storage Unit Improved Sensor Array > --- WEAPON ----------- Small Laser Light Assault Rifle > --- INVENTORY -------- Aluminum Leg Medium Matter Pod Datajack Datajack Mining Laser [Rating: 9] Favorites ----------- Power Ion Engine Engine Ion Engine Propulsion Aluminum Leg Leg Aluminum Leg Utility Small Storage Unit Device Improved Sensor Array Storage Small Storage Unit Weapon Light Assault Rifle Energy Gun EM Pulse Gun Ballistic Gun Light Assault Rifle Ballistic Cannon Light Cannon Launcher Rocket Launcher Special Weapon Mining Laser Special Melee Weapon Datajack Build | -11 -10 -10 -9 ------- Run | Scr Mat Min Mat Slots Evolved 2 | . . . 2 Power . | . . . . Propulsion 1 | . . . 1 Utility 1 | . . . 1 Weapon . | . . . . Parts Attached 39 | 6 8 11 14 Power 5 | 1 1 . 3 Engine 5 | 1 1 . 3 Core . | . . . . Reactor . | . . . . Propulsion 12 | 2 . 3 7 Treads . | . . . . Leg 12 | 2 . 3 7 Wheel . | . . . . Hover . | . . . . Flight . | . . . . Utility 2 | 1 . . 1 Device 1 | . . . 1 Storage 1 | 1 . . . Processor . | . . . . Hackware . | . . . . Protection . | . . . . Artifact . | . . . . Weapon 20 | 2 7 8 3 Energy Gun 5 | 1 3 . 1 Energy Cannon . | . . . . Ballistic Gun 6 | 1 1 3 1 Ballistic Cannon 2 | . 1 1 . Launcher 1 | . . 1 . Special Weapon 1 | . . 1 . Impact Weapon . | . . . . Slashing Weapon . | . . . . Piercing Weapon . | . . . . Special Melee Weapon 5 | . 2 2 1 Unidentified Prototypes . | . . . . Parts Lost 7 | . . 2 5 Power 1 | . . . 1 Propulsion 1 | . . . 1 Utility . | . . . . Weapon 5 | . . 2 3 Highest Loss Streak 3 | . . 1 3 Average Slot Usage (%) 79 | . 85 82 64 Engine 13 | . 14 14 10 Leg 27 | . 28 28 26 Storage 13 | . 14 14 11 Energy Gun 2 | . 5 1 1 Ballistic Gun 8 | . 2 12 5 Ballistic Cannon 3 | . 11 . . Launcher 4 | . . 7 4 Special Weapon 1 | . . 3 . Special Melee Weapon 2 | . 7 . . Naked Turns . | . . . . Heaviest Build 14 | 12 14 14 13 Greatest Support 30 | 20 20 20 30 Greatest Overweight (x) . | . . . . Average Overweight (x) . | . . . . Largest Inventory Capacity 6 | 6 6 6 6 Average Capacity 5 | 5 6 6 6 Most Carried 6 | 3 5 6 6 Average Carried 4 | . 2 5 5 Final Capacity 6 | 6 6 6 6 Final Carried 6 | . 5 6 6 Class Distribution -------------------- 56% | Mutant 43% | Scavenger-Mutant Dominant Class ---------------- Mutant | -10/Materials Scavenger-Mutant | -10/Mines Mutant | -9/Materials Resources | -11 -10 -10 -9 ----------- Run | Scr Mat Min Mat Matter Collected 820 | 113 246 275 186 Remotely . | . . . . Salvage Created 759 | . 182 315 262 Parts 59 | . 19 24 16 Haulers Intercepted 1 | . 1 . . Recyclers Shooed . | . . . . Parts Field Recycled . | . . . . Retrieved Matter . | . . . . Parts Self-Destructed . | . . . . Prevented . | . . . . Kills | -11 -10 -10 -9 ------- Run | Scr Mat Min Mat Combat Hostiles Destroyed 32 | . 7 18 7 Guns 14 | . 1 8 5 Cannons 7 | . 6 1 . AOE 11 | . . 9 2 Classes Destroyed 5 | . 5 . . Worker 4 | . 1 3 . Builder 2 | . 2 . . Hauler 1 | . 1 . . Swarmer 18 | . 6 12 . Grunt 14 | . 1 6 7 Best Kill Streak 9 | . 9 5 3 Combat Bots Only 7 | . 7 4 3 Max Kills in Single Turn 3 | . 2 3 2 Gunslinging . | . . . . Exploded 2 | . . 2 2 Melee . | . . . . Uniques/NPCs Destroyed . | . . . . Combat | -11 -10 -10 -9 -------- Run | Scr Mat Min Mat Damage Taken 1389 | . 253 543 593 Core 186 | . 22 95 69 Absorbed by Shields . | . . . . Core Remaining (%) 76 | 100 . 53 . Volleys Fired 110 | . 22 50 38 Largest 2 | . 2 2 2 Hottest 140 | . 75 140 60 Shots Fired 149 | . 39 66 44 Gun 107 | . 17 47 43 Cannon 27 | . 22 5 . Launcher 8 | . . 7 1 Special 7 | . . 7 . Kinetic 107 | . 30 40 37 Thermal 13 | . . 7 6 Explosive 8 | . . 7 1 Electromagnetic 21 | . 9 12 . Robot Hit Streak 18 | . 8 12 18 Robot Miss Streak 3 | . 3 3 1 Penetration Max . | . . . . Secondary Targets . | . . . . Shots Hit Robots 126 | . 37 50 39 Core Hits 59 | . 12 33 14 Critical Hits . | . . . . Critical Kills . | . . . . Critical Parts Destroyed . | . . . . Melee Attacks 16 | . 13 2 1 Impact . | . . . . Slashing . | . . . . Piercing . | . . . . Sneak Attacks 12 | . 10 1 1 Combat Hostiles . | . . . . Follow-up Attacks . | . . . . Damage Inflicted 2240 | . 397 1323 520 Guns 804 | . 96 366 342 Cannons 352 | . 301 51 . Explosions 1012 | . . 834 178 Melee . | . . . . Ramming . | . . . . Kinetic 931 | . 346 288 297 Thermal 259 | . . 214 45 Explosive 870 | . . 692 178 Electromagnetic 180 | . 51 129 . Impact . | . . . . Slashing . | . . . . Piercing . | . . . . Highest Corruption . | . . . . Average Corruption . | . . . . Corruption Purged . | . . . . Overload Shots . | . . . . Overflow Damage 77 | . 2 57 18 Projectiles 2 | . 2 . . Explosions 75 | . . 57 18 Melee . | . . . . Knockbacks 4 | . 4 . . Impact . | . . . . Kinetic 3 | . 3 . . Secondary 1 | . 1 . . Self-Inflicted Damage 104 | . . 29 75 Shots 3 | . . 1 2 Rammed . | . . . . Targets Rammed . | . . . . Kicked . | . . . . Crushed . | . . . . Highest Temperature 123 | . 123 120 46 Average Temperature 30 | . 38 32 15 Received Heat Transfer 627 | . 18 246 363 Siege Activations . | . . . . Robots Corrupted . | . . . . Combat Hostiles . | . . . . Parts Fried . | . . . . Impact Corruptions . | . . . . Robots Melted . | . . . . Combat Hostiles . | . . . . Parts Melted . | . . . . Heat Transferred 400 | . . 300 100 Parts Sabotaged . | . . . . Parts Stolen . | . . . . Parts Stripped . | . . . . Power Chain Reactions 1 | . . 1 . Missiles Intercepted . | . . . . Alert | -11 -10 -10 -9 ------- Run | Scr Mat Min Mat Peak Influence 274 | . 209 274 184 Average Influence 90 | . 48 117 81 Maximum Alert Level 1 | . 1 1 . Low Security (%) 93 | 100 92 90 100 Level 1 6 | . 7 9 . Level 2 . | . . . . Level 3 . | . . . . Level 4 . | . . . . Level 5 . | . . . . High Security . | . . . . Max Security . | . . . . Squads Dispatched 1 | . . . 1 Investigation 1 | . . . 1 Extermination . | . . . . Reinforcement . | . . . . Assault . | . . . . Garrison . | . . . . Intercept . | . . . . Construction Impeded . | . . . . Haulers Reinforced . | . . . . Stealth | -11 -10 -10 -9 --------- Run | Scr Mat Min Mat Distress Signals 2 | . . . 2 Communications Jammed . | . . . . Distress Signals . | . . . . Times Spotted 55 | . 17 19 19 Peak Tracking Total 6 | . 6 3 6 Tactical Retreats 5 | . 1 4 . Traps | -11 -10 -10 -9 ------- Run | Scr Mat Min Mat Traps Triggered . | . . . . Indirectly . | . . . . Trap Hack Attempts . | . . . . Triggered . | . . . . Disarmed . | . . . . Reprogrammed . | . . . . Reused 2 | . . 1 1 Traps Extracted . | . . . . Installed 2 | . . 1 1 Triggered 2 | . . 1 1 Machines | -11 -10 -10 -9 ---------- Run | Scr Mat Min Mat Machines Disabled 11 | . 1 9 1 Max in Single Turn 8 | . 1 8 1 Machines Sabotaged . | . . . . Garrisons Compromised . | . . . . Overloaded Fab Kills . | . . . . Fab Network Shutdowns . | . . . . Hacking | -11 -10 -10 -9 --------- Run | Scr Mat Min Mat Machines Accessed 3 | . 2 . 1 Terminals 3 | . 2 . 1 Fabricators . | . . . . Repair Stations . | . . . . Recycling Units . | . . . . Scanalyzers . | . . . . Garrison Access . | . . . . Total Hacks 18 | . 8 . 10 Successful 12 | . 5 . 7 Failed 6 | . 3 . 3 Catastrophic 1 | . 1 . . Database Lockouts . | . . . . Manual 5 | . 5 . . Terminals 18 | . 8 . 10 Fabricators . | . . . . Repair Stations . | . . . . Recycling Units . | . . . . Scanalyzers . | . . . . Garrison Access . | . . . . Terminal Hacks 12 | . 5 . 7 Record 6 | . . . 6 Prototype ID Bank 4 | . 3 . 1 Terminal Index 1 | . 1 . . Locate Traps 1 | . 1 . . Fabricator Hacks . | . . . . Repair Station Hacks . | . . . . Recycling Unit Hacks . | . . . . Scanalyzer . | . . . . Garrison Access Hacks . | . . . . Unauthorized Hacks . | . . . . Terminals . | . . . . Fabricators . | . . . . Repair Stations . | . . . . Recycling Units . | . . . . Scanalyzers . | . . . . Garrison Access . | . . . . Data Cores Recovered . | . . . . Used . | . . . . Hacking Detections 3 | . 2 . 1 Full Trace Events 1 | . . . 1 Feedback Events . | . . . . Feedback Blocked . | . . . . Robot Schematics Acquired . | . . . . Robots Built . | . . . . Matter . | . . . . Time . | . . . . Total Robot Build Rating . | . . . . Part Schematics Acquired . | . . . . Parts Built . | . . . . Matter . | . . . . Time . | . . . . Total Part Build Rating . | . . . . Parts Repaired . | . . . . Time . | . . . . Parts Recycled . | . . . . Recycled Matter . | . . . . Retrieved Matter . | . . . . Retrieved Components . | . . . . Parts Scanalyzed . | . . . . Part Schematics Acquired . | . . . . Parts Damaged . | . . . . Bothacking | -11 -10 -10 -9 ------------ Run | Scr Mat Min Mat Used RIF Installer . | . . . . Robots Hacked 5 | . 4 1 . Non-combat 3 | . 3 . . Combat 2 | . 1 1 . Robot Hacks Applied 7 | . 6 1 . parse_system 4 | . 3 1 . no_distress 3 | . 3 . . Relay Couplers Released . | . . . . Robots Rewired . | . . . . Allies Hacked . | . . . . Hacks Repelled . | . . . . Allies | -11 -10 -10 -9 -------- Run | Scr Mat Min Mat Total Allies . | . . . . Largest Group . | . . . . Highest-Rated Group . | . . . . Highest-Rated Ally . | . . . . Total Orders . | . . . . Ally Attacks . | . . . . Total Damage . | . . . . Kills . | . . . . Allies Corrupted . | . . . . Allies Melted . | . . . . Intel | -11 -10 -10 -9 ------- Run | Scr Mat Min Mat Robot Analysis Total . | . . . . Derelict Logs Recovered 1 | . . 1 . Drone Launches . | . . . . Drone Recoveries . | . . . . Exploration | -11 -10 -10 -9 ------------- Run | Scr Mat Min Mat Turns Passed 2258 | 55 575 1215 413 Spaces Moved 1310 | 46 378 745 141 Core 16 | 16 . . . Treads . | . . . . Legs 1294 | 30 378 745 141 Wheels . | . . . . Hover . | . . . . Flight . | . . . . Fastest Speed 50 | 50 120 120 120 Average Speed 119 | 95 120 120 120 Slowest Speed 120 | 120 120 120 120 Overloaded Moves . | . . . . Propulsion Burnouts . | . . . . Robots Hopped . | . . . . Cave-ins Triggered . | . . . . Exploration Rate (%) 39 | 2 48 95 13 Regions Visited 3 Branch Regions 1 Pre-discovered Areas . | . . . . Known Exits Taken . | . . . . Unknown Exits Taken 3 | 1 1 1 . Scrap Searched 1 | . . 1 . Spaces Dug 3 | . . 3 . Terrain Destroyed 129 | . . 118 11 Melee . | . . . . Projectile 3 | . . 3 . AOE 126 | . . 115 11 Actions | -11 -10 -10 -9 --------- Run | Scr Mat Min Mat Total 1848 | 57 450 991 350 Wait 328 | . 18 171 139 Move 1307 | 45 377 744 141 Hop . | . . . . Pick Up 24 | 6 6 5 7 Fast Attach 1 | . . . 1 Attach 20 | 6 5 3 6 Detach 8 | . 5 2 1 Swap 18 | . 3 8 7 Drop 14 | . 1 5 8 Fire 110 | . 22 50 38 Melee 16 | . 13 2 1 Ram . | . . . . Kick . | . . . . Crush . | . . . . Escape Stasis . | . . . . Rewire . | . . . . Trap 2 | . . 1 1 Miscellaneous . | . . . . Route ------- -11/Scrapyard -10/Materials (discovered 3 exits: *Mat / [*Min x2]) -10/Mines (discovered 2 exits: *Mat x2) -9/Materials History --------- Turn | Location | Event 5 | -11/Scrapyard | Discovered new exit (range 16) 56 | -11/Scrapyard | Entered Materials 201 | -10/Materials | Discovered new exit (range 16) 208 | -10/Materials | Discovered new exit (range 12) 302 | -10/Materials | Build established: Mutant 358 | -10/Materials | Destroyed 7 combat bots 499 | -10/Materials | Discovered new exit (range 13) 631 | -10/Materials | Entered Mines 740 | -10/Mines | Discovered new exit (range 15) 1040 | -10/Mines | Received a Rocket Launcher from a helpful Derelict 1149 | -10/Mines | Found a hidden stash of uninstalled traps 1248 | -10/Mines | Build established: Scavenger-Mutant 1724 | -10/Mines | Discovered new exit (range 16) 1751 | -10/Mines | Learned Materials trap positions 1846 | -10/Mines | Entered Materials 1846 | -9/Materials | Evolved 2 slots: Propulsion x1, Utility x1 1847 | -9/Materials | Loaded intel: 16 trap records 2018 | -9/Materials | Build established: Mutant 2067 | -9/Materials | Lost 3 parts (1p1n1w) 2259 | -9/Materials | Self-destructed Last Messages --------------- Acquired 48 matter. Dropped Aluminum Leg. R-06 Scavenger collects Heat Sink. W-16 Scout distress signal alerts nearby ally. R-06 Scavenger collects Ion Engine. R-06 Scavenger collects Aluminum Leg. Acquired Imp. Sensor Array. G-34 Mercenary destroyed. Acquired Sml. Laser. G-47 Trooper destroyed. U-05 Engineer builds a Door. Acquired Sml. Laser. Dropped Aluminum Leg. Acquired 30 matter. Dropped Aluminum Leg. Dropped Ion Engine. C-30 ARC bursts open, deploying its payload. G-34 Mercenary unfolds itself. Lgt. Assault Rifle destroyed. Sml. Laser destroyed. Map ----- +----------------------------------------------------+ | ?????????????????????????????????????????????????? | | ?????????????????????????????????????????????????? | | ?????????????????????????????????????????????????? | | ?????????????????????????????????????????????????? | | ?????????????????????????????????????????????????? | | ?????????????????????????????????????????????????? | | ?????????????????????????????????????????????????? | | ?????????????????????????????????????????????????? | | ?????????????????????????????????????????????????? | | ?????????????????????????????????????????????????? | | ??????????????###??####??????????????????????????? | | ??????????????# ?? #??????????????????????????? | | ??????????????# ? #??????????????????????????? | | ??????????????# """ #??????????????????????????? | | ??????????????# """ #??????????????????????????? | | ??????????????# """ #????????##????????????????? | | ??????????????# #########Y#????????????????? | | ??????????????# """ ## #????????????????? | | ??????????????# """ ## "#????????????????? | | ??????????????# """ ## "#????????????????? | | ??????????????# ## == "#????????????????? | | ??????????????# ## == T#????????????????? | | ????###+#########+###/## =! "#????????????????? | | ????# # "#????????????????? | | ????# # "#????????????????? | | ????# + @ #????????????????? | | ????# #######+## ##########????????????????? | | ????# #! # #?????????????????????????? | | ????# +%=%""" # ????????????????????????? | | ##### ###% """ # ????????????????^^????? | | =#?#*= """ # ??????????????^^????? | | #########?# ###### ???????????????????? | | ??????????# """ #?????#####???????????????????? | | ??????????# """ #?????????????????????????????? | | ??????????# """ #?????????????????????????????? | | ??????????# #?????????????????????????????? | | ??????????##########?????????????????????????????? | | | | | | | | | | | | | | | | | | | | | | | | | | | +----------------------------------------------------+ Best States ------------- Heat Dissipation 28 Energy Generation 10 Energy Capacity 250 Matter Stores 300 Matter Capacity 300 Sight Range 16 Robot Scan Range 13 Terrain Scan Density 10 Resistance: KI 20 Resistance: TH 20 Resistance: EX 20 Resistance: EM 20 Resistance: I 20 Resistance: S 20 Resistance: P 20 Evasion (%) 50 Offensive Hacking 10 Item Schematics ----------------- None Robot Schematics ------------------ None Fabricated ------------ Nothing Alien Tech Used ----------------- None Achievements -------------- None Challenges ------------ None Game ------ Seed FlightBorePropulsion Manual? 0 Play Time 00:26:16 Cumulative 5.9 hours Start 2019.12.28 @ 20:54:39 End 2019.12.28 @ 21:26:51 Sessions 1 Manual Loads 0 Difficulty Adventurer Special Mode None Game No. 9 Rogue 0 Adventurer 9 Explorer 0 Win Type - Total 0 Types 0/0/0/0/0/0/0 Lore% 16 Gallery% 9 Achievement% 9 Wizard Run 0 Options --------- ASCII 0 Keyboard 0 Movement Arrows Keybinds 0 Fullscreen 1 Font 16/Terminus Map View 76x50 Tactical HUD 0 Map Filters NONE Filters NONE Steam 1 RUN: c76c6bda-538d-4059-863a-00b64122b095